{"text_format":"3","workbook":"xlsx","n_sheets":3,"sheets":["Sheet1","Sheet2","Sheet3"],"read":"whole","date_system":"1900"}

{"sheet":"Sheet1","index":0,"n_rows":22,"n_cols":7,"rows_kept":22}
["2025年上半年航拍设备采购询价单"]
["序号","品名","数量","单价","总价","使用部门","部门小计"]
[{"$f":"ROW()-2","v":1},"大疆话筒 mic2：DJI Mic 2 （两发一收，含充电盒）",null,null,{"$f":"C3*D3","v":0},"融媒体中心"]
[2,"大疆 灵眸 Pocket 3 全能套装",{"$nulls":3},"融媒体中心"]
[3,"稳定器 大疆如影 RS4 标准版",{"$nulls":3},"融媒体中心"]
[4,"大疆 御3 Pro 畅飞套装（DJI RC）随心换1年版、闪迪128G至尊超极速TF卡\n带屏遥控器、电池*3、充电管家、100W桌面充电器、ND镜套装、单肩包",{"$nulls":3},"融媒体中心"]
[5,"御3pro 无人机 保险延期2年：随心换2年版（DJI Mavic 3）",{"$nulls":3},"融媒体中心"]
[6,"大疆 御3 Pro 电池",{"$nulls":3},"融媒体中心"]
[7,"摄影包 2个 蒲公英 OneMo2 25升 子母包",{"$nulls":3},"融媒体中心"]
[{"$f":"ROW()-2","v":8},"视频编辑业务电脑i5-12500、升级到16G内存、512G固态硬盘、另加1T机械硬盘，惠普27寸1080P显示器",{"$nulls":3},"融媒体中心"]
[9,"抢答器小分指示牌",{"$nulls":3},"融媒体中心",{"$f":"SUM(E3:E11)","v":0}]
[10,"大疆（DJI） 如影RS4 手持云台稳定器 标准版",{"$nulls":3},"新闻中心"]
[11,"大疆 DJI Mic2 无线麦克风（两发一收，含充电盒）",{"$nulls":3},"新闻中心"]
[12,"PGYTECH 相机包 OneMo2 25升 子母包",{"$nulls":3},"新闻中心",{"$f":"SUM(E12:E14)","v":0}]
[13,"稳定器 大疆 DJI RS 4 Mini 标准版",{"$nulls":3},"综合广播"]
[14,"航拍器 大疆 DJI Air 3S 畅飞三电套装（带屏遥控器）",{"$nulls":3},"综合广播"]
[15,"显示器",{"$nulls":3},"综合广播",{"$f":"SUM(E15:E17)","v":0}]
[16,"大疆手拍 Osmo POCKET 3（含全能套装、DJI MIC 2 一拖一）全能套装含Pocket3、DJI MIC2收音端1个（不含DJI Mic 2发射器）、续航手柄、迷你三脚架、收纳包、增广镜",{"$nulls":3},"交通旅游广播"]
[17,"无线麦（大疆 DJI MIC 2）",{"$nulls":3},"交通旅游广播",{"$f":"SUM(E18:E19)","v":0}]
[18,"手持拍摄设备大疆 DJI Osmo Pocket 3 全能套装",{"$nulls":3},"外宣中心",{"$f":"E20","v":0}]
[19,"显示器",{"$nulls":3},"传媒公司",{"$f":"E21","v":0}]
[20,"8T固态移动硬盘",{"$nulls":3},"办公室 ",{"$f":"SUM(G11:G21)","v":0}]

{"sheet":"Sheet2","index":1,"n_rows":0,"n_cols":0,"rows_kept":0}

{"sheet":"Sheet3","index":2,"n_rows":0,"n_cols":0,"rows_kept":0}